[Event "Modransky Cup 2025"]
[Site "Modra"]
[Date "2025.02.20"]
[Round "1.1"]
[White "Stevik, Patrik"]
[Black "Hudak, Michal"]
[Result "1-0"]
[Annotator "RC"]
[ECO "E01"]
[WhiteElo "2331"]
[BlackElo "1823"]
[PlyCount "51"]
[EventDate "2025.02.20"]
[EventCountry "SVK"]
[SourceTitle "playchess.com"]
[Source "ChessBase"]
[SourceQuality "1"]
[TimeControl "5400+30"]

1. Nf3 {[%emt 0:00:07]} d5 {[%emt 0:00:10]} 2. g3 {[%emt 0:00:02]} Nf6 {[%emt 0:00:09]} 3. Bg2 {[%emt 0:00:30]} e6 {[%emt 0:00:20]} 4. O-O {[%emt 0:00:00]} Bd6 {[%emt 0:00:31]} 5. d4 {[%emt 0:00:00]} O-O {[%emt 0:41:12]} 6. c4 {[%emt 0:24:41]} c6 {[%emt 0:00:30]} 7. b3 {[%emt 0:00:30]} Nbd7 {[%emt 0:00:30]} 8. Bb2 {[%emt 0:00:30]} dxc4 {[%emt 0:00:30]} 9. bxc4 {[%emt 0:00:30]} c5 {[%emt 0:00:30]} 10. e3 {[%emt 0:00:30]} Qc7 {[%emt 0:00:30]} 11. Nc3 {[%emt 0:00:30]} a6 {[%emt 0:00:30]} 12. Qe2 {[%emt 0:00:30]} Rb8 {[%emt 0:00:30]} 13. Rfd1 {[%emt 0:00:30]} Nb6 {[%emt 0:00:30]} 14. Rac1 {[%emt 0:00:30]} Bd7 {[%emt 0:00:30]} 15. Ne5 {[%emt 0:00:30]} Ba4 {[%emt 0:00:30]} 16. Nxa4 {[%emt 0:07:55]} Nxa4 {[%emt 0:24:42]} 17. Ba1 {[%emt 0:00:10]} Rfd8 {[%emt 0:13:41]} 18. Nd3 {[%emt 0:01:58]} cxd4 {[%emt 0:00:30]} 19. c5 {[%emt 0:04:04]} Be7 {[%emt 0:03:07]} 20. Bxd4 {[%emt 0:00:03]} Qa5 {[%emt 0:00:35]} 21. c6 {[%emt 0:00:49]} Rxd4 {[%emt 0:07:56]} 22. Ne5 {[%emt 0:00:11]} bxc6 {[%emt 0:00:31]} 23. exd4 {[%emt 0:01:56]} Nc3 {[%emt 0:00:56]} 24. Qe1 {[%emt 0:00:11]} Bb4 {[%emt 0:00:16]} 25. Nxc6 {[%emt 0:00:03]} Nxd1 {[%emt 0:01:04]} 26. Qxd1 {[%emt 0:00:04]} 1-0

[Event "Modransky Cup 2025"]
[Site "Modra"]
[Date "2025.02.20"]
[Round "1.2"]
[White "Nosal, Tobias"]
[Black "Shirinyan, Daniel"]
[Result "0-1"]
[Annotator "ChessBase"]
[ECO "A49"]
[WhiteElo "1807"]
[BlackElo "2231"]
[PlyCount "80"]
[EventDate "2025.02.20"]
[EventCountry "SVK"]
[SourceTitle "playchess.com"]
[Source "ChessBase"]
[SourceQuality "1"]
[TimeControl "5400+30"]

1. Nf3 {[%emt 0:00:05]} Nf6 {[%emt 0:01:54]} 2. g3 {[%emt 0:00:05]} g6 {[%emt 0:00:04]} 3. b3 {[%emt 0:00:04]} Bg7 {[%emt 0:00:07]} 4. Bb2 {[%emt 0:00:05]} O-O {[%emt 0:00:16]} 5. Bg2 {[%emt 0:00:04]} d6 {[%emt 0:00:29]} 6. d4 {[%emt 0:00:06]} a5 {[%emt 0:00:30]} 7. a4 {[%emt 0:05:13]} Nc6 {[%emt 0:02:33]} 8. O-O {[%emt 0:02:08]} Nd7 {[%emt 0:08:10]} 9. Nbd2 {[%emt 0:13:24]} e5 {[%emt 0:08:15]} 10. dxe5 {[%emt 0:03:49]} Ndxe5 {[%emt 0:01:44]} 11. Nxe5 {[%emt 0:02:51]} Nxe5 {[%emt 0:00:07]} 12. Qc1 {[%emt 0:11:36]} d5 {[%emt 0:02:47]} 13. Nf3 {[%emt 0:03:58]} Nxf3+ {[%emt 0:13:00]} 14. Bxf3 {[%emt 0:00:23]} c6 {[%emt 0:00:05]} 15. Bxg7 {[%emt 0:04:39]} Kxg7 {[%emt 0:00:17]} 16. Qb2+ {[%emt 0:01:27]} Qf6 {[%emt 0:00:32]} 17. Qxf6+ {[%emt 0:07:19]} Kxf6 {[%emt 0:00:01]} 18. e4 {[%emt 0:06:21]} d4 {[%emt 0:07:51]} 19. Rad1 {[%emt 0:10:31]} Rd8 {[%emt 0:02:35]} 20. Be2 {[%emt 0:03:23]} Ke5 {[%emt 0:11:13]} 21. Bd3 {[%emt 0:03:51]} Bh3 {[%emt 0:05:21]} 22. f4+ {[%emt 0:03:47]} Kd6 {[%emt 0:00:03]} 23. Rfe1 {[%emt 0:01:38]} Kc5 {[%emt 0:00:39]} 24. Bc4 {[%emt 0:01:49]} Rd7 {[%emt 0:01:43]} 25. Rd2 {[%emt 0:03:13]} Re8 {[%emt 0:02:26]} 26. Kf2 {[%emt 0:01:40]} Rde7 {[%emt 0:04:43]} 27. Bd3 {[%emt 0:04:58]} f6 {[%emt 0:13:46]} 28. Rdd1 {[%emt 0:01:30]} Kb4 {[%emt 0:00:48]} 29. Ra1 {[%emt 0:01:00]} Bd7 {[%emt 0:01:57]} 30. Red1 {[%emt 0:01:52]} c5 {[%emt 0:01:07]} 31. Re1 {[%emt 0:00:31]} Bc6 {[%emt 0:00:22]} 32. e5 {[%emt 0:02:24]} fxe5 {[%emt 0:00:10]} 33. Rxe5 {[%emt 0:00:37]} Rxe5 {[%emt 0:00:01]} 34. fxe5 {[%emt 0:00:01]} Rxe5 {[%emt 0:00:03]} 35. Re1 {[%emt 0:00:51]} Rxe1 {[%emt 0:00:23]} 36. Kxe1 {[%emt 0:00:02]} Kc3 {[%emt 0:00:01]} 37. Kd1 {[%emt 0:01:08]} Bd5 {[%emt 0:00:06]} 38. Kc1 {[%emt 0:00:34]} Bxb3 {[%emt 0:00:10]} 39. Be4 {[%emt 0:00:30]} Bxa4 {[%emt 0:00:17]} 40. Bxb7 {[%emt 0:00:23]} Bxc2 {[%emt 0:00:05]} 0-1

[Event "Modransky Cup 2025"]
[Site "Modra"]
[Date "2025.02.20"]
[Round "1.3"]
[White "Banas, Kamil"]
[Black "Sekera, Timotej"]
[Result "1-0"]
[Annotator "ChessBase"]
[ECO "B06"]
[WhiteElo "2178"]
[BlackElo "1802"]
[PlyCount "43"]
[EventDate "2025.02.20"]
[EventCountry "SVK"]
[SourceTitle "playchess.com"]
[Source "ChessBase"]
[SourceQuality "1"]
[TimeControl "5400+30"]

1. e4 {[%emt 0:32:42]} g6 {[%emt 0:00:34]} 2. d4 {[%emt 0:00:05]} Bg7 {[%emt 0:00:09]} 3. Nc3 {[%emt 0:00:13]} d6 {[%emt 0:00:14]} 4. f4 {[%emt 0:00:15]} a6 {[%emt 0:03:06]} 5. Nf3 {[%emt 0:01:17]} b5 {[%emt 0:04:02]} 6. a3 {[%emt 0:03:48]} Bb7 {[%emt 0:05:33]} 7. Be3 {[%emt 0:08:47]} Nd7 {[%emt 0:05:59]} 8. Be2 {[%emt 0:03:40]} e6 {[%emt 0:04:32]} 9. O-O {[%emt 0:00:47]} h6 {[%emt 0:03:17]} 10. f5 {[%emt 0:03:51]} Ne7 {[%emt 0:11:56]} 11. fxe6 {[%emt 0:01:34]} fxe6 {[%emt 0:00:13]} 12. Nh4 {[%emt 0:04:17]} Nf8 {[%emt 0:06:27]} 13. Qd2 {[%emt 0:04:45]} g5 {[%emt 0:01:38]} 14. Bh5+ {[%emt 0:01:39]} Kd7 {[%emt 0:00:14]} 15. Rf7 {[%emt 0:01:23]} Qe8 {[%emt 0:03:40]} 16. Qe2 {[%emt 0:02:01]} gxh4 {[%emt 0:07:24]} 17. Rxg7 {[%emt 0:00:06]} Qb8 {[%emt 0:00:28]} 18. Qg4 {[%emt 0:01:38]} Rh7 {[%emt 0:04:53]} 19. Rf1 {[%emt 0:00:55]} Qa7 {[%emt 0:00:59]} 20. Rxf8 {[%emt 0:00:44]} Rxg7 {[%emt 0:00:30]} 21. Qxg7 {[%emt 0:00:22]} c5 {[%emt 0:07:31]} 22. d5 {[%emt 0:01:11]} 1-0

[Event "Modransky Cup 2025"]
[Site "Modra"]
[Date "2025.02.20"]
[Round "1.4"]
[White "Wolak, Jan"]
[Black "Oruzinsky, Juraj"]
[Result "0-1"]
[Annotator "ChessBase"]
[ECO "B33"]
[WhiteElo "1762"]
[BlackElo "2171"]
[PlyCount "87"]
[EventDate "2025.02.20"]
[EventCountry "SVK"]
[SourceTitle "playchess.com"]
[Source "ChessBase"]
[SourceQuality "1"]
[TimeControl "5400+30"]

1. e4 {[%emt 0:00:08]} c5 {[%emt 0:00:05]} 2. Nf3 {[%emt 0:00:07]} Nc6 {[%emt 0:00:04]} 3. d4 {[%emt 0:00:11]} cxd4 {[%emt 0:00:05]} 4. Nxd4 {[%emt 0:00:05]} Nf6 {[%emt 0:00:09]} 5. Nc3 {[%emt 0:00:22]} e5 {[%emt 0:00:07]} 6. Ndb5 {[%emt 0:00:04]} d6 {[%emt 0:00:05]} 7. Nd5 {[%emt 0:00:13]} Nxd5 {[%emt 0:00:07]} 8. exd5 {[%emt 0:00:08]} Nb8 {[%emt 0:00:05]} 9. a4 {[%emt 0:00:52]} Be7 {[%emt 0:00:21]} 10. Be2 {[%emt 0:01:17]} O-O {[%emt 0:00:13]} 11. O-O {[%emt 0:01:22]} f5 {[%emt 0:00:43]} 12. f3 {[%emt 0:04:34]} Nd7 {[%emt 0:03:46]} 13. Be3 {[%emt 0:01:01]} f4 {[%emt 0:06:33]} 14. Bf2 {[%emt 0:00:24]} a6 {[%emt 0:00:23]} 15. Na3 {[%emt 0:00:06]} Bh4 {[%emt 0:03:01]} 16. Nc4 {[%emt 0:02:49]} Bxf2+ {[%emt 0:00:07]} 17. Rxf2 {[%emt 0:00:02]} Rf6 {[%emt 0:11:44]} 18. b4 {[%emt 0:05:52]} Rh6 {[%emt 0:01:25]} 19. Nd2 {[%emt 0:00:23]} Nf6 {[%emt 0:12:40]} 20. Nf1 {[%emt 0:02:36]} a5 {[%emt 0:08:16]} 21. b5 {[%emt 0:01:45]} g5 {[%emt 0:04:11]} 22. Bd3 {[%emt 0:02:12]} Kh8 {[%emt 0:01:23]} 23. c4 {[%emt 0:03:09]} g4 {[%emt 0:02:46]} 24. Qc2 {[%emt 0:02:38]} b6 {[%emt 0:09:01]} 25. Bf5 {[%emt 0:04:01]} Bxf5 {[%emt 0:06:06]} 26. Qxf5 {[%emt 0:00:13]} Rh5 {[%emt 0:06:13]} 27. Qd3 {[%emt 0:04:57]} Qc7 {[%emt 0:03:55]} 28. Raa2 {[%emt 0:02:33]} Rg8 {[%emt 0:01:41]} 29. fxg4 {[%emt 0:00:39]} Nxg4 {[%emt 0:01:56]} 30. Rf3 {[%emt 0:01:18]} Rg6 {[%emt 0:03:49]} 31. Rc2 {[%emt 0:01:18]} Rhg5 {[%emt 0:01:41]} 32. Kh1 {[%emt 0:01:19]} Nf6 {[%emt 0:00:28]} 33. Rff2 {[%emt 0:00:13]} Qc5 {[%emt 0:00:45]} 34. Qh3 {[%emt 0:01:06]} Ng4 {[%emt 0:04:55]} 35. Rfe2 {[%emt 0:00:34]} Rh6 {[%emt 0:00:18]} 36. Qf3 {[%emt 0:00:10]} Qb4 {[%emt 0:01:36]} 37. g3 {[%emt 0:01:32]} fxg3 {[%emt 0:01:16]} 38. Nxg3 {[%emt 0:00:52]} Rf6 {[%emt 0:00:43]} 39. Qe4 {[%emt 0:00:53]} Rf4 {[%emt 0:01:06]} 40. Qd3 {[%emt 0:00:19]} Qb1+ {[%emt 0:01:19]} 41. Kg2 {[%emt 0:00:01]} Qf1+ {[%emt 0:02:08]} 42. Nxf1 {[%emt 0:00:26]} Ne3+ {[%emt 0:00:03]} 43. Kh3 {[%emt 0:00:28]} Rf3+ {[%emt 0:00:09]} 44. Ng3 {[%emt 0:00:20]} 0-1

[Event "Modransky Cup 2025"]
[Site "Modra"]
[Date "2025.02.20"]
[Round "1.5"]
[White "Hitka, Dominik"]
[Black "Soldan, Jan"]
[Result "1-0"]
[Annotator "NA"]
[ECO "B23"]
[WhiteElo "2099"]
[BlackElo "1756"]
[PlyCount "47"]
[EventDate "2025.02.20"]
[EventCountry "SVK"]
[SourceTitle "playchess.com"]
[Source "ChessBase"]
[SourceQuality "1"]
[TimeControl "5400+30"]

1. e4 {[%emt 0:00:07]} c5 {[%emt 0:00:03]} 2. Nc3 {[%emt 0:00:08]} Nc6 {[%emt 0:00:15]} 3. Bb5 {[%emt 0:00:06]} g6 {[%emt 0:00:45]} 4. Bxc6 {[%emt 0:00:08]} bxc6 {[%emt 0:06:01]} 5. d3 {[%emt 0:00:13]} Bg7 {[%emt 0:00:27]} 6. f4 {[%emt 0:00:09]} d6 {[%emt 0:01:41]} 7. Nf3 {[%emt 0:00:08]} f5 {[%emt 0:02:22]} 8. O-O {[%emt 0:02:02]} Nh6 {[%emt 0:03:37]} 9. Qe1 {[%emt 0:02:29]} O-O {[%emt 0:00:34]} 10. e5 {[%emt 0:00:42]} e6 {[%emt 0:04:50]} 11. b3 {[%emt 0:08:56]} Nf7 {[%emt 0:06:55]} 12. Ba3 {[%emt 0:05:34]} Qa5 {[%emt 0:01:46]} 13. Na4 {[%emt 0:02:18]} Qc7 {[%emt 0:03:35]} 14. exd6 {[%emt 0:01:45]} Nxd6 {[%emt 0:00:11]} 15. Ne5 {[%emt 0:00:18]} Nf7 {[%emt 0:07:45]} 16. Bxc5 {[%emt 0:01:35]} Nxe5 {[%emt 0:00:15]} 17. fxe5 {[%emt 0:00:31]} Bxe5 {[%emt 0:00:57]} 18. Bxf8 {[%emt 0:00:17]} Bxa1 {[%emt 0:00:29]} 19. Qxa1 {[%emt 0:00:07]} Kxf8 {[%emt 0:01:35]} 20. Qh8+ {[%emt 0:00:13]} Ke7 {[%emt 0:01:04]} 21. Qxh7+ {[%emt 0:00:10]} Kd8 {[%emt 0:01:56]} 22. Qg8+ {[%emt 0:00:24]} Ke7 {[%emt 0:01:20]} 23. Qg7+ {[%emt 0:00:22]} Kd8 {[%emt 0:01:33]} 24. Qf8+ {[%emt 0:00:10]} 1-0

[Event "Modransky Cup 2025"]
[Site "Modra"]
[Date "2025.02.20"]
[Round "1.6"]
[White "Ronaj, Filip"]
[Black "Chlpek, Daniel"]
[Result "0-1"]
[Annotator "NA"]
[ECO "B33"]
[WhiteElo "1746"]
[BlackElo "2039"]
[PlyCount "76"]
[EventDate "2025.02.20"]
[EventCountry "SVK"]
[SourceTitle "playchess.com"]
[Source "ChessBase"]
[SourceQuality "1"]
[TimeControl "5400+30"]

1. e4 {[%emt 0:00:15]} c5 {[%emt 0:00:09]} 2. Nf3 {[%emt 0:00:27]} Nc6 {[%emt 0:00:16]} 3. d4 {[%emt 0:00:05]} cxd4 {[%emt 0:00:17]} 4. Nxd4 {[%emt 0:00:24]} Nf6 {[%emt 0:00:18]} 5. f3 {[%emt 0:00:30]} g6 {[%emt 0:02:20]} 6. b3 {[%emt 0:01:49]} Bg7 {[%emt 0:01:20]} 7. Bb2 {[%emt 0:00:31]} Nxd4 {[%emt 0:01:57]} 8. Bxd4 {[%emt 0:03:40]} O-O {[%emt 0:02:21]} 9. Bb5 {[%emt 0:00:31]} Qa5+ {[%emt 0:00:31]} 10. Nc3 {[%emt 0:00:30]} a6 {[%emt 0:05:59]} 11. Be2 {[%emt 0:00:31]} e5 {[%emt 0:00:43]} 12. Be3 {[%emt 0:04:54]} Qxc3+ {[%emt 0:00:09]} 13. Bd2 {[%emt 0:00:01]} Qc5 {[%emt 0:01:34]} 14. Qc1 {[%emt 0:02:14]} d5 {[%emt 0:00:18]} 15. Be3 {[%emt 0:01:04]} Qc3+ {[%emt 0:00:15]} 16. Bd2 {[%emt 0:00:23]} Qc6 {[%emt 0:00:17]} 17. Bh6 {[%emt 0:03:53]} dxe4 {[%emt 0:00:25]} 18. Bxg7 {[%emt 0:00:17]} Qc3+ {[%emt 0:00:46]} 19. Kf2 {[%emt 0:01:01]} Kxg7 {[%emt 0:00:36]} 20. Qe3 {[%emt 0:00:36]} Qxe3+ {[%emt 0:00:11]} 21. Kxe3 {[%emt 0:00:08]} exf3 {[%emt 0:00:23]} 22. Bxf3 {[%emt 0:00:09]} e4 {[%emt 0:00:04]} 23. Be2 {[%emt 0:00:43]} Bg4 {[%emt 0:00:24]} 24. Rae1 {[%emt 0:02:08]} Rad8 {[%emt 0:00:33]} 25. Kf2 {[%emt 0:01:18]} Rd2 {[%emt 0:03:24]} 26. h3 {[%emt 0:01:55]} Bxe2 {[%emt 0:00:09]} 27. Rxe2 {[%emt 0:00:02]} Rfd8 {[%emt 0:00:08]} 28. Rhe1 {[%emt 0:01:03]} h5 {[%emt 0:01:02]} 29. a4 {[%emt 0:01:46]} a5 {[%emt 0:00:16]} 30. Kf1 {[%emt 0:03:33]} g5 {[%emt 0:00:17]} 31. Rxd2 {[%emt 0:00:10]} Rxd2 {[%emt 0:00:08]} 32. Re2 {[%emt 0:00:03]} Rxe2 {[%emt 0:00:11]} 33. Kxe2 {[%emt 0:00:30]} Nd5 {[%emt 0:00:11]} 34. g4 {[%emt 0:00:31]} hxg4 {[%emt 0:00:10]} 35. hxg4 {[%emt 0:00:02]} Kf6 {[%emt 0:00:11]} 36. c4 {[%emt 0:01:46]} Nb4 {[%emt 0:00:06]} 37. Kd2 {[%emt 0:01:11]} Ke5 {[%emt 0:00:06]} 38. c5 {[%emt 0:00:33]} Kd4 {[%emt 0:00:10]} 0-1

[Event "Modransky Cup 2025"]
[Site "Modra"]
[Date "2025.02.20"]
[Round "1.7"]
[White "Pongo, Aron"]
[Black "Bednar, Daniel"]
[Result "1-0"]
[Annotator "ChessBase"]
[ECO "A44"]
[WhiteElo "2030"]
[BlackElo "1720"]
[PlyCount "67"]
[EventDate "2025.02.20"]
[EventCountry "SVK"]
[SourceTitle "playchess.com"]
[Source "ChessBase"]
[SourceQuality "1"]
[TimeControl "5400+30"]

1. d4 {[%emt 0:00:04]} c5 {[%emt 0:00:05]} 2. d5 {[%emt 0:00:10]} e5 {[%emt 0:00:07]} 3. c4 {[%emt 0:00:10]} d6 {[%emt 0:00:06]} 4. e4 {[%emt 0:00:43]} Be7 {[%emt 0:00:08]} 5. Nf3 {[%emt 0:00:30]} Bg4 {[%emt 0:00:38]} 6. Qa4+ {[%emt 0:01:16]} Nd7 {[%emt 0:03:12]} 7. Nfd2 {[%emt 0:00:15]} Bg5 {[%emt 0:04:06]} 8. Nc3 {[%emt 0:05:51]} a6 {[%emt 0:09:46]} 9. h3 {[%emt 0:11:55]} Bh5 {[%emt 0:10:25]} 10. Qc2 {[%emt 0:05:10]} Bg6 {[%emt 0:14:49]} 11. Bd3 {[%emt 0:08:48]} h5 {[%emt 0:10:16]} 12. Nf1 {[%emt 0:03:28]} h4 {[%emt 0:03:32]} 13. Ne3 {[%emt 0:06:53]} Bf4 {[%emt 0:18:22]} 14. Nf5 {[%emt 0:27:36]} Bxf5 {[%emt 0:02:04]} 15. exf5 {[%emt 0:00:27]} Bxc1 {[%emt 0:01:22]} 16. Qxc1 {[%emt 0:00:23]} Ngf6 {[%emt 0:00:46]} 17. g4 {[%emt 0:10:21]} Qa5 {[%emt 0:07:11]} 18. Qd2 {[%emt 0:02:13]} Kf8 {[%emt 0:07:09]} 19. O-O {[%emt 0:03:00]} Re8 {[%emt 0:01:31]} 20. Qe3 {[%emt 0:01:11]} Qd8 {[%emt 0:00:32]} 21. Rae1 {[%emt 0:01:00]} Nh7 {[%emt 0:03:49]} 22. Bc2 {[%emt 0:03:03]} Nb6 {[%emt 0:00:37]} 23. Qd3 {[%emt 0:01:45]} Ng5 {[%emt 0:00:36]} 24. Re3 {[%emt 0:00:56]} f6 {[%emt 0:00:14]} 25. Rfe1 {[%emt 0:01:37]} Kf7 {[%emt 0:00:32]} 26. a3 {[%emt 0:00:41]} Nd7 {[%emt 0:00:58]} 27. Ba4 {[%emt 0:00:24]} b6 {[%emt 0:00:25]} 28. Bc6 {[%emt 0:01:03]} Rhf8 {[%emt 0:00:29]} 29. Qc2 {[%emt 0:00:31]} e4 {[%emt 0:00:41]} 30. Bxd7 {[%emt 0:02:20]} Qxd7 {[%emt 0:00:02]} 31. Nxe4 {[%emt 0:00:20]} Nxe4 {[%emt 0:00:08]} 32. Rxe4 {[%emt 0:00:02]} Rxe4 {[%emt 0:00:11]} 33. Qxe4 {[%emt 0:00:39]} Re8 {[%emt 0:00:56]} 34. Qe6+ {[%emt 0:01:13]} 1-0

[Event "Modransky Cup 2025"]
[Site "Modra"]
[Date "2025.02.20"]
[Round "1.8"]
[White "Veres, Alex"]
[Black "Iankin, Arseni"]
[Result "0-1"]
[Annotator "NA"]
[ECO "C13"]
[WhiteElo "1699"]
[BlackElo "2016"]
[PlyCount "44"]
[EventDate "2025.02.20"]
[EventCountry "SVK"]
[SourceTitle "playchess.com"]
[Source "ChessBase"]
[SourceQuality "1"]
[TimeControl "5400+30"]

1. e4 {[%emt 0:00:10]} e6 {[%emt 0:00:05]} 2. d4 {[%emt 0:00:19]} d5 {[%emt 0:00:05]} 3. Nc3 {[%emt 0:00:48]} Nf6 {[%emt 0:00:07]} 4. Bg5 {[%emt 0:11:29]} dxe4 {[%emt 0:00:22]} 5. Bxf6 {[%emt 0:03:38]} gxf6 {[%emt 0:00:34]} 6. Nxe4 {[%emt 0:00:37]} Be7 {[%emt 0:00:28]} 7. Nf3 {[%emt 0:01:13]} f5 {[%emt 0:00:05]} 8. Ng3 {[%emt 0:02:05]} c5 {[%emt 0:06:21]} 9. c3 {[%emt 0:03:29]} Nc6 {[%emt 0:04:11]} 10. Bb5 {[%emt 0:03:40]} Qb6 {[%emt 0:05:38]} 11. Bxc6+ {[%emt 0:14:24]} bxc6 {[%emt 0:00:15]} 12. Qd2 {[%emt 0:01:39]} Ba6 {[%emt 0:00:44]} 13. Ne2 {[%emt 0:08:08]} cxd4 {[%emt 0:03:20]} 14. Nexd4 {[%emt 0:04:39]} Rd8 {[%emt 0:01:37]} 15. Qc2 {[%emt 0:02:04]} c5 {[%emt 0:05:30]} 16. Ne2 {[%emt 0:08:10]} Bd3 {[%emt 0:01:40]} 17. Qc1 {[%emt 0:02:16]} Rg8 {[%emt 0:01:24]} 18. Nf4 {[%emt 0:01:03]} Be4 {[%emt 0:03:30]} 19. Nd2 {[%emt 0:07:02]} Bb7 {[%emt 0:03:58]} 20. Nc4 {[%emt 0:04:15]} Qc7 {[%emt 0:01:37]} 21. Qe3 {[%emt 0:04:21]} Bg5 {[%emt 0:00:37]} 22. Nxe6 {[%emt 0:01:46]} fxe6 {[%emt 0:00:06]} 0-1

[Event "Modransky Cup 2025"]
[Site "Modra"]
[Date "2025.02.20"]
[Round "1.9"]
[White "Durana, Jonas"]
[Black "Kolibik, Jan"]
[Result "1-0"]
[Annotator "NA"]
[ECO "B20"]
[WhiteElo "2006"]
[BlackElo "1683"]
[PlyCount "71"]
[EventDate "2025.02.20"]
[EventCountry "SVK"]
[SourceTitle "playchess.com"]
[Source "ChessBase"]
[SourceQuality "1"]
[TimeControl "5400+30"]

1. e4 {[%emt 0:00:03]} c5 {[%emt 0:00:11]} 2. g3 {[%emt 0:00:42]} b6 {[%emt 0:00:31]} 3. Bg2 {[%emt 0:00:09]} Bb7 {[%emt 0:00:15]} 4. Nc3 {[%emt 0:00:05]} g6 {[%emt 0:00:42]} 5. d3 {[%emt 0:00:03]} Bg7 {[%emt 0:00:31]} 6. f4 {[%emt 0:00:04]} e6 {[%emt 0:02:29]} 7. Nf3 {[%emt 0:01:06]} d6 {[%emt 0:01:43]} 8. O-O {[%emt 0:00:20]} Ne7 {[%emt 0:00:52]} 9. Qe1 {[%emt 0:01:18]} O-O {[%emt 0:00:54]} 10. g4 {[%emt 0:01:48]} f5 {[%emt 0:01:05]} 11. Qg3 {[%emt 0:27:37]} Qd7 {[%emt 0:03:18]} 12. Bd2 {[%emt 0:08:44]} Nbc6 {[%emt 0:00:45]} 13. gxf5 {[%emt 0:05:35]} exf5 {[%emt 0:01:14]} 14. Rae1 {[%emt 0:04:13]} Nd4 {[%emt 0:01:14]} 15. Nxd4 {[%emt 0:06:41]} Bxd4+ {[%emt 0:01:10]} 16. Kh1 {[%emt 0:03:26]} Bg7 {[%emt 0:01:50]} 17. b3 {[%emt 0:09:33]} Rae8 {[%emt 0:02:06]} 18. Nd1 {[%emt 0:01:47]} d5 {[%emt 0:01:00]} 19. e5 {[%emt 0:00:24]} d4 {[%emt 0:00:17]} 20. a4 {[%emt 0:04:07]} Bc6 {[%emt 0:01:41]} 21. Nb2 {[%emt 0:00:14]} Qb7 {[%emt 0:01:52]} 22. Rf2 {[%emt 0:02:38]} a6 {[%emt 0:04:27]} 23. Nc4 {[%emt 0:00:13]} Nc8 {[%emt 0:00:18]} 24. b4 {[%emt 0:07:47]} Bxg2+ {[%emt 0:00:23]} 25. Qxg2 {[%emt 0:01:09]} Qxg2+ {[%emt 0:01:29]} 26. Rxg2 {[%emt 0:00:18]} Re6 {[%emt 0:00:18]} 27. bxc5 {[%emt 0:00:29]} bxc5 {[%emt 0:00:41]} 28. Rb1 {[%emt 0:00:09]} Ne7 {[%emt 0:01:43]} 29. h4 {[%emt 0:03:21]} Bh6 {[%emt 0:02:41]} 30. Kh2 {[%emt 0:02:26]} Nd5 {[%emt 0:04:23]} 31. Kg3 {[%emt 0:00:03]} Ree8 {[%emt 0:00:36]} 32. Rgg1 {[%emt 0:00:55]} Rb8 {[%emt 0:00:51]} 33. Nd6 {[%emt 0:02:46]} Nb4 {[%emt 0:01:43]} 34. Bxb4 {[%emt 0:00:50]} Rxb4 {[%emt 0:00:37]} 35. Rxb4 {[%emt 0:01:17]} cxb4 {[%emt 0:00:09]} 36. e6 {[%emt 0:00:07]} 1-0

[Event "Modransky Cup 2025"]
[Site "Modra"]
[Date "2025.02.20"]
[Round "1.10"]
[White "Hanzel, Richard"]
[Black "Meszaros, Casey Ryan"]
[Result "0-1"]
[Annotator "ChessBase"]
[ECO "A85"]
[WhiteElo "1668"]
[BlackElo "2003"]
[PlyCount "128"]
[EventDate "2025.02.20"]
[EventCountry "SVK"]
[SourceTitle "playchess.com"]
[Source "ChessBase"]
[SourceQuality "1"]
[TimeControl "5400+30"]

1. d4 {[%emt 0:00:30]} e6 {[%emt 0:01:10]} 2. c4 {[%emt 0:00:16]} f5 {[%emt 0:00:13]} 3. a3 {[%emt 0:00:07]} Nf6 {[%emt 0:00:10]} 4. Nc3 {[%emt 0:00:08]} Be7 {[%emt 0:00:07]} 5. Nf3 {[%emt 0:00:08]} O-O {[%emt 0:00:15]} 6. Qc2 {[%emt 0:00:10]} b6 {[%emt 0:00:51]} 7. g3 {[%emt 0:01:08]} Bb7 {[%emt 0:00:08]} 8. Bg2 {[%emt 0:00:07]} d6 {[%emt 0:00:59]} 9. O-O {[%emt 0:02:58]} Ne4 {[%emt 0:02:58]} 10. e3 {[%emt 0:02:33]} Nd7 {[%emt 0:00:23]} 11. Rd1 {[%emt 0:06:09]} Bf6 {[%emt 0:03:44]} 12. Bd2 {[%emt 0:03:25]} Qe8 {[%emt 0:06:00]} 13. Ne2 {[%emt 0:08:16]} g5 {[%emt 0:03:22]} 14. Bc3 {[%emt 0:04:51]} Qh5 {[%emt 0:03:00]} 15. Ne1 {[%emt 0:04:15]} Bg7 {[%emt 0:03:26]} 16. Bf3 {[%emt 0:06:02]} Qf7 {[%emt 0:03:53]} 17. Rac1 {[%emt 0:08:09]} Rae8 {[%emt 0:04:50]} 18. Qa4 {[%emt 0:07:51]} a5 {[%emt 0:02:49]} 19. b4 {[%emt 0:01:48]} axb4 {[%emt 0:02:48]} 20. axb4 {[%emt 0:00:32]} Nxc3 {[%emt 0:01:34]} 21. Nxc3 {[%emt 0:01:17]} Bxf3 {[%emt 0:07:11]} 22. Nxf3 {[%emt 0:00:10]} h6 {[%emt 0:07:43]} 23. Nb5 {[%emt 0:04:47]} Nf6 {[%emt 0:13:19]} 24. Qa7 {[%emt 0:11:55]} Re7 {[%emt 0:04:25]} 25. Qb7 {[%emt 0:00:15]} Ne8 {[%emt 0:06:55]} 26. Kg2 {[%emt 0:01:44]} f4 {[%emt 0:01:32]} 27. exf4 {[%emt 0:11:30]} e5 {[%emt 0:08:54]} 28. dxe5 {[%emt 0:03:05]} dxe5 {[%emt 0:00:15]} 29. Qd5 {[%emt 0:01:05]} exf4 {[%emt 0:00:24]} 30. gxf4 {[%emt 0:03:25]} Qxd5 {[%emt 0:01:00]} 31. cxd5 {[%emt 0:00:12]} Rxf4 {[%emt 0:01:42]} 32. Re1 {[%emt 0:03:56]} Rxe1 {[%emt 0:00:56]} 33. Rxe1 {[%emt 0:00:14]} Kf7 {[%emt 0:01:02]} 34. Rc1 {[%emt 0:02:08]} g4 {[%emt 0:02:05]} 35. Ne1 {[%emt 0:00:58]} Rxb4 {[%emt 0:02:45]} 36. Nxc7 {[%emt 0:00:11]} Rd4 {[%emt 0:01:03]} 37. Nxe8 {[%emt 0:00:56]} Kxe8 {[%emt 0:00:06]} 38. Rc6 {[%emt 0:00:35]} Rxd5 {[%emt 0:04:56]} 39. Rxb6 {[%emt 0:00:13]} Rd1 {[%emt 0:00:22]} 40. Re6+ {[%emt 0:00:25]} Kf7 {[%emt 0:00:11]} 41. Re4 {[%emt 0:00:14]} h5 {[%emt 0:00:42]} 42. Nc2 {[%emt 0:00:18]} Kg6 {[%emt 0:00:23]} 43. Ne3 {[%emt 0:00:24]} Rd2 {[%emt 0:00:30]} 44. Kg3 {[%emt 0:01:30]} Kg5 {[%emt 0:00:43]} 45. Ra4 {[%emt 0:00:58]} Be5+ {[%emt 0:00:27]} 46. Kg2 {[%emt 0:00:24]} Bd4 {[%emt 0:00:33]} 47. Kg1 {[%emt 0:00:58]} Bxe3 {[%emt 0:00:21]} 48. fxe3 {[%emt 0:00:03]} Re2 {[%emt 0:00:31]} 49. Re4 {[%emt 0:00:43]} Kh4 {[%emt 0:00:20]} 50. Re5 {[%emt 0:00:41]} Ra2 {[%emt 0:00:26]} 51. Rf5 {[%emt 0:00:36]} Rb2 {[%emt 0:00:51]} 52. Rf2 {[%emt 0:00:34]} Rb3 {[%emt 0:00:07]} 53. Re2 {[%emt 0:00:07]} Kh3 {[%emt 0:00:36]} 54. e4 {[%emt 0:00:25]} Rb1+ {[%emt 0:00:45]} 55. Kf2 {[%emt 0:00:07]} Kxh2 {[%emt 0:00:14]} 56. Ke3+ {[%emt 0:00:51]} Kh3 {[%emt 0:00:17]} 57. Kf4 {[%emt 0:00:40]} g3 {[%emt 0:00:49]} 58. Re3 {[%emt 0:00:28]} h4 {[%emt 0:00:15]} 59. e5 {[%emt 0:01:02]} Kh2 {[%emt 0:00:27]} 60. Kg4 {[%emt 0:00:16]} Rb4+ {[%emt 0:00:48]} 61. Kf3 {[%emt 0:00:21]} g2 {[%emt 0:00:24]} 62. Re2 {[%emt 0:00:33]} Kh1 {[%emt 0:00:32]} 63. Rxg2 {[%emt 0:00:45]} Rb3+ {[%emt 0:00:08]} 64. Kg4 {[%emt 0:00:36]} Kxg2 {[%emt 0:00:07]} 0-1